[Event "*** Titled Tuesday Blitz"]
[Site "Chess.com"]
[Date "2020.01.07"]
[Round "6"]
[White "KerryStead"]
[Black "garfield_pg"]
[Result "1/2-1/2"]
[WhiteElo "2101"]
[BlackElo "2310"]
[TimeControl "180+2"]
[EndTime "14:24:06 PST"]
[Termination "Game drawn by repetition"]

1. d4 {[%clk 0:03:01.9]} 1... Nf6 {[%clk 0:01:28.4]} 2. f3 {[%clk 0:03:01.3]}
2... g6 {[%clk 0:01:29.6]} 3. e4 {[%clk 0:03:01.9]} 3... d6 {[%clk 0:01:29.4]}
4. Be3 {[%clk 0:03:02.9]} 4... Bg7 {[%clk 0:01:29.9]} 5. Qd2 {[%clk 0:03:04.3]}
5... O-O {[%clk 0:01:30.2]} 6. Bc4 {[%clk 0:03:04.4]} 6... c6 {[%clk 0:01:29.9]}
7. a4 {[%clk 0:03:01.8]} 7... a6 {[%clk 0:01:09.7]} 8. Bb3 {[%clk 0:03:01]} 8...
Nbd7 {[%clk 0:01:04.5]} 9. Ne2 {[%clk 0:03:01.4]} 9... e5 {[%clk 0:00:59.3]} 10.
c3 {[%clk 0:03:00.3]} 10... Qc7 {[%clk 0:00:54.1]} 11. O-O {[%clk 0:02:55.5]}
11... Re8 {[%clk 0:00:38.2]} 12. Bh6 {[%clk 0:02:52.8]} 12... Bh8 {[%clk
0:00:37.2]} 13. Ng3 {[%clk 0:02:45.5]} 13... Ra7 {[%clk 0:00:18.4]} 14. Na3
{[%clk 0:02:43.2]} 14... b5 {[%clk 0:00:15.3]} 15. axb5 {[%clk 0:02:39.8]} 15...
axb5 {[%clk 0:00:16.5]} 16. Nc2 {[%clk 0:02:40.2]} 16... Rxa1 {[%clk 0:00:15.5]}
17. Rxa1 {[%clk 0:02:40.8]} 17... Bb7 {[%clk 0:00:17.4]} 18. Ne3 {[%clk
0:02:34.9]} 18... Ra8 {[%clk 0:00:17.4]} 19. Rxa8+ {[%clk 0:02:28.7]} 19... Bxa8
{[%clk 0:00:17.8]} 20. h4 {[%clk 0:02:27.6]} 20... Qb6 {[%clk 0:00:14.5]} 21. h5
{[%clk 0:02:26.3]} 21... b4 {[%clk 0:00:14]} 22. hxg6 {[%clk 0:02:25.2]} 22...
hxg6 {[%clk 0:00:13.4]} 23. Nc4 {[%clk 0:02:20.9]} 23... Qc7 {[%clk 0:00:12.9]}
24. dxe5 {[%clk 0:02:15.9]} 24... dxe5 {[%clk 0:00:12.9]} 25. Qg5 {[%clk
0:02:14]} 25... Bg7 {[%clk 0:00:13.7]} 26. Bxg7 {[%clk 0:02:10.9]} 26... Kxg7
{[%clk 0:00:14.7]} 27. Nf5+ {[%clk 0:02:12.1]} 27... Kg8 {[%clk 0:00:14.4]} 28.
Nh6+ {[%clk 0:01:55.7]} 28... Kg7 {[%clk 0:00:14.7]} 29. Nxf7 {[%clk 0:01:54.3]}
29... Kxf7 {[%clk 0:00:14.1]} 30. Nxe5+ {[%clk 0:01:54.4]} 30... Ke7 {[%clk
0:00:14.1]} 31. Nxd7 {[%clk 0:01:49.4]} 31... Qxd7 {[%clk 0:00:14.2]} 32. e5
{[%clk 0:01:50.7]} 32... Qf5 {[%clk 0:00:14.1]} 33. exf6+ {[%clk 0:01:49.8]}
33... Qxf6 {[%clk 0:00:15.6]} 34. Qc5+ {[%clk 0:01:46.9]} 34... Qd6 {[%clk
0:00:15.9]} 35. Qe3+ {[%clk 0:01:47.5]} 35... Kf6 {[%clk 0:00:16.4]} 36. cxb4
{[%clk 0:01:43.6]} 36... Qxb4 {[%clk 0:00:16.3]} 37. Qe6+ {[%clk 0:01:43.8]}
37... Kg7 {[%clk 0:00:16.7]} 38. Qg8+ {[%clk 0:01:43.2]} 38... Kh6 {[%clk
0:00:18.1]} 39. Bf7 {[%clk 0:00:45.1]} 39... Qe1+ {[%clk 0:00:16.8]} 40. Kh2
{[%clk 0:00:46.4]} 40... Qh4+ {[%clk 0:00:15.9]} 41. Kg1 {[%clk 0:00:47.8]}
41... Qe1+ {[%clk 0:00:14.4]} 42. Kh2 {[%clk 0:00:49]} 42... Qh4+ {[%clk
0:00:14.7]} 43. Kg1 {[%clk 0:00:49.5]} 43... Qe1+ {[%clk 0:00:14.2]} 1/2-1/2

[Event "*** Titled Tuesday Blitz"]
[Site "Chess.com"]
[Date "2020.01.07"]
[Round "6"]
[White "vlad_Sid"]
[Black "Vegan4future"]
[Result "0-1"]
[WhiteElo "2585"]
[BlackElo "2448"]
[TimeControl "180+2"]
[EndTime "14:24:12 PST"]
[Termination "Vegan4future won on time"]

1. c4 {[%clk 0:02:57.8]} 1... e5 {[%clk 0:02:53.1]} 2. g3 {[%clk 0:02:59.1]}
2... Nc6 {[%clk 0:02:54.5]} 3. Bg2 {[%clk 0:03:00.5]} 3... Bc5 {[%clk
0:02:56.1]} 4. Nc3 {[%clk 0:03:01.9]} 4... d6 {[%clk 0:02:57.5]} 5. e3 {[%clk
0:03:03.4]} 5... Bf5 {[%clk 0:02:58.7]} 6. Nge2 {[%clk 0:03:00.6]} 6... Bd3
{[%clk 0:02:57.6]} 7. O-O {[%clk 0:02:32.1]} 7... Nge7 {[%clk 0:02:47.2]} 8. b3
{[%clk 0:02:28.5]} 8... Nb4 {[%clk 0:02:34.8]} 9. Bb2 {[%clk 0:02:18]} 9... Bc2
{[%clk 0:02:13.8]} 10. Qc1 {[%clk 0:02:17.1]} 10... Bg6 {[%clk 0:02:15.7]} 11.
d4 {[%clk 0:02:03.7]} 11... Nd3 {[%clk 0:01:52.7]} 12. Qd2 {[%clk 0:02:03.6]}
12... Bb4 {[%clk 0:01:49.6]} 13. a3 {[%clk 0:02:00.6]} 13... Nxb2 {[%clk
0:01:45.6]} 14. axb4 {[%clk 0:01:55.2]} 14... Nd3 {[%clk 0:01:47.5]} 15. Bxb7
{[%clk 0:01:55.9]} 15... Rb8 {[%clk 0:01:28.5]} 16. Bg2 {[%clk 0:01:49.1]} 16...
exd4 {[%clk 0:01:25.8]} 17. exd4 {[%clk 0:01:47.8]} 17... Nxb4 {[%clk
0:01:27.2]} 18. Rxa7 {[%clk 0:01:45.3]} 18... O-O {[%clk 0:01:25.4]} 19. Nb5
{[%clk 0:01:42.1]} 19... c6 {[%clk 0:01:17.4]} 20. Qxb4 {[%clk 0:01:39.1]} 20...
cxb5 {[%clk 0:01:18.3]} 21. cxb5 {[%clk 0:01:40]} 21... Bd3 {[%clk 0:01:16.4]}
22. Re1 {[%clk 0:01:35.8]} 22... Bxb5 {[%clk 0:00:56.3]} 23. Qc3 {[%clk
0:01:33.1]} 23... Rc8 {[%clk 0:00:53.4]} 24. Qd2 {[%clk 0:01:08.8]} 24... Nc6
{[%clk 0:00:46.6]} 25. Ra2 {[%clk 0:01:06.9]} 25... Qb6 {[%clk 0:00:45.8]} 26.
d5 {[%clk 0:00:57.2]} 26... Ne5 {[%clk 0:00:46.7]} 27. Nd4 {[%clk 0:00:55.5]}
27... Bd7 {[%clk 0:00:44.4]} 28. f4 {[%clk 0:00:32.8]} 28... Ng4 {[%clk
0:00:40.3]} 29. h3 {[%clk 0:00:32.2]} 29... Nf6 {[%clk 0:00:38.6]} 30. Kh2
{[%clk 0:00:33.4]} 30... Rc5 {[%clk 0:00:34]} 31. Nc6 {[%clk 0:00:32.4]} 31...
Nxd5 {[%clk 0:00:29.2]} 32. b4 {[%clk 0:00:07.1]} 32... Rxc6 {[%clk 0:00:22.2]}
33. Bxd5 {[%clk 0:00:08.4]} 33... Rcc8 {[%clk 0:00:21.1]} 34. Re7 {[%clk
0:00:09.5]} 34... Bc6 {[%clk 0:00:20.9]} 35. Bb3 {[%clk 0:00:05.8]} 35... Ba8
{[%clk 0:00:19.9]} 36. Raa7 {[%clk 0:00:06.2]} 36... Qc6 {[%clk 0:00:19.4]} 37.
Rxa8 {[%clk 0:00:03.8]} 37... Qxa8 {[%clk 0:00:20.2]} 38. Qxd6 {[%clk
0:00:02.6]} 38... Qf3 {[%clk 0:00:21]} 39. Bd5 {[%clk 0:00:02.5]} 39... Qf2+
{[%clk 0:00:21.7]} 40. Kh1 {[%clk 0:00:03.4]} 40... Rc1+ {[%clk 0:00:22.4]} 0-1

[Event "*** Titled Tuesday Blitz"]
[Site "Chess.com"]
[Date "2020.01.07"]
[Round "6"]
[White "Supernotar"]
[Black "Alopekos"]
[Result "1-0"]
[WhiteElo "2552"]
[BlackElo "2417"]
[TimeControl "180+2"]
[EndTime "14:24:23 PST"]
[Termination "Supernotar won by resignation"]

1. d4 {[%clk 0:03:01.9]} 1... Nf6 {[%clk 0:03:00.6]} 2. c4 {[%clk 0:03:03]} 2...
e6 {[%clk 0:03:01.6]} 3. Nf3 {[%clk 0:03:03.3]} 3... d5 {[%clk 0:03:00]} 4. e3
{[%clk 0:03:03.9]} 4... c5 {[%clk 0:03:00.8]} 5. dxc5 {[%clk 0:03:04.5]} 5...
Bxc5 {[%clk 0:03:01.4]} 6. a3 {[%clk 0:03:05.8]} 6... a6 {[%clk 0:02:56.2]} 7.
b4 {[%clk 0:03:06.7]} 7... Bd6 {[%clk 0:02:53.7]} 8. Bb2 {[%clk 0:03:07.6]} 8...
O-O {[%clk 0:02:54.8]} 9. Nbd2 {[%clk 0:03:08.1]} 9... Nc6 {[%clk 0:02:48.2]}
10. Be2 {[%clk 0:03:06]} 10... Qe7 {[%clk 0:02:45.6]} 11. O-O {[%clk 0:03:06.1]}
11... Rd8 {[%clk 0:02:46.1]} 12. Qb3 {[%clk 0:03:06.6]} 12... Bd7 {[%clk
0:01:58.2]} 13. Rac1 {[%clk 0:03:04.8]} 13... Rac8 {[%clk 0:01:57.2]} 14. Rfd1
{[%clk 0:03:04.9]} 14... h6 {[%clk 0:01:55.8]} 15. h3 {[%clk 0:03:05.4]} 15...
Bb8 {[%clk 0:01:53.6]} 16. cxd5 {[%clk 0:03:04]} 16... exd5 {[%clk 0:01:52.2]}
17. Nd4 {[%clk 0:03:01.9]} 17... Ba7 {[%clk 0:01:34.7]} 18. N2f3 {[%clk
0:02:59.2]} 18... Ne4 {[%clk 0:01:35.1]} 19. Nxc6 {[%clk 0:02:56.4]} 19... Bxc6
{[%clk 0:01:30.3]} 20. Nd4 {[%clk 0:02:57]} 20... Bd7 {[%clk 0:00:09.8]} 21.
Rxc8 {[%clk 0:02:47.2]} 21... Bxc8 {[%clk 0:00:10.2]} 22. Bf3 {[%clk 0:02:46.3]}
22... Bb8 {[%clk 0:00:08.5]} 23. g3 {[%clk 0:02:27.6]} 23... h5 {[%clk
0:00:03.8]} 24. Bxh5 {[%clk 0:02:19.9]} 24... Bxh3 {[%clk 0:00:04.5]} 25. Bf3
{[%clk 0:02:17.8]} 25... Bc8 {[%clk 0:00:04.8]} 26. Kg2 {[%clk 0:02:17.9]} 26...
Qg5 {[%clk 0:00:03.6]} 27. Ne2 {[%clk 0:02:17.8]} 27... Bg4 {[%clk 0:00:02.8]}
28. Bxg4 {[%clk 0:02:12.5]} 28... Qxg4 {[%clk 0:00:04.7]} 29. f3 {[%clk
0:02:08.8]} 29... Qh5 {[%clk 0:00:05.7]} 30. Rh1 {[%clk 0:02:09.5]} 30... Qg6
{[%clk 0:00:06.1]} 31. fxe4 {[%clk 0:02:04.7]} 31... Qxe4+ {[%clk 0:00:07]} 32.
Kg1 {[%clk 0:02:05]} 32... Ba7 {[%clk 0:00:06]} 33. Bd4 {[%clk 0:02:01]} 33...
Bxd4 {[%clk 0:00:06.6]} 34. Nxd4 {[%clk 0:02:02]} 34... Rc8 {[%clk 0:00:07.2]}
35. Rh4 {[%clk 0:01:47.1]} 35... Rc1+ {[%clk 0:00:05.6]} 36. Kf2 {[%clk
0:01:48.3]} 36... Qe5 {[%clk 0:00:04.3]} 37. Qb2 {[%clk 0:01:44.1]} 37... Rc8
{[%clk 0:00:02.7]} 38. Qb1 {[%clk 0:01:42.2]} 38... g6 {[%clk 0:00:03.2]} 39.
Qh1 {[%clk 0:01:39.9]} 39... Rc3 {[%clk 0:00:03.2]} 40. Qf3 {[%clk 0:01:36.6]}
40... Rxa3 {[%clk 0:00:04]} 41. Rf4 {[%clk 0:01:34.8]} 41... Ra2+ {[%clk
0:00:05.2]} 42. Kg1 {[%clk 0:01:35]} 42... Ra1+ {[%clk 0:00:06.2]} 43. Kf2
{[%clk 0:01:35.9]} 43... Ra2+ {[%clk 0:00:07.5]} 44. Ne2 {[%clk 0:01:37.1]}
44... Qe7 {[%clk 0:00:08.4]} 45. Qxd5 {[%clk 0:01:35.9]} 45... Rb2 {[%clk
0:00:07.3]} 46. Qd4 {[%clk 0:01:30.5]} 46... Rc2 {[%clk 0:00:06.1]} 47. Rh4
{[%clk 0:01:31.4]} 47... f6 {[%clk 0:00:04.1]} 48. Re4 {[%clk 0:01:32.5]} 48...
Qc7 {[%clk 0:00:02.9]} 49. Qxf6 {[%clk 0:01:30]} 49... Qf7 {[%clk 0:00:03.9]}
50. Qxf7+ {[%clk 0:01:27.9]} 50... Kxf7 {[%clk 0:00:05.8]} 51. Rd4 {[%clk
0:01:28.5]} 51... Ke6 {[%clk 0:00:05.7]} 52. Kf3 {[%clk 0:01:28.9]} 52... Rb2
{[%clk 0:00:06.7]} 53. Nf4+ {[%clk 0:01:29.4]} 53... Kf6 {[%clk 0:00:06.5]} 54.
Rd6+ {[%clk 0:01:30]} 54... Kf7 {[%clk 0:00:05.3]} 55. Rb6 {[%clk 0:01:28.7]}
1-0

[Event "*** Titled Tuesday Blitz"]
[Site "Chess.com"]
[Date "2020.01.07"]
[Round "6"]
[White "korbul"]
[Black "Dynamikus"]
[Result "0-1"]
[WhiteElo "2598"]
[BlackElo "2565"]
[TimeControl "180+2"]
[EndTime "14:24:27 PST"]
[Termination "Dynamikus won by resignation"]

1. d4 {[%clk 0:03:01.9]} 1... d5 {[%clk 0:02:59.7]} 2. Nf3 {[%clk 0:03:02.8]}
2... c6 {[%clk 0:03:01.6]} 3. Bf4 {[%clk 0:03:03.1]} 3... Nf6 {[%clk 0:03:00.6]}
4. e3 {[%clk 0:03:04]} 4... Bf5 {[%clk 0:03:01.3]} 5. c4 {[%clk 0:03:04.3]} 5...
e6 {[%clk 0:03:01.7]} 6. Nc3 {[%clk 0:03:05.4]} 6... Nbd7 {[%clk 0:02:57.6]} 7.
h3 {[%clk 0:03:06.2]} 7... Be7 {[%clk 0:02:58.1]} 8. Qb3 {[%clk 0:03:07]} 8...
Qc8 {[%clk 0:02:56.7]} 9. Be2 {[%clk 0:03:05.5]} 9... O-O {[%clk 0:02:57.6]} 10.
O-O {[%clk 0:03:06.2]} 10... Nb6 {[%clk 0:02:57.7]} 11. c5 {[%clk 0:02:58.9]}
11... Nbd7 {[%clk 0:02:58]} 12. Qd1 {[%clk 0:02:44.8]} 12... Ne4 {[%clk
0:02:58.6]} 13. Nxe4 {[%clk 0:02:44.4]} 13... Bxe4 {[%clk 0:03:00.5]} 14. b4
{[%clk 0:02:45]} 14... Bxf3 {[%clk 0:02:59.2]} 15. Bxf3 {[%clk 0:02:44.9]} 15...
Re8 {[%clk 0:02:59.5]} 16. a4 {[%clk 0:02:44.2]} 16... Bf6 {[%clk 0:02:54.5]}
17. Bd6 {[%clk 0:02:42]} 17... Be7 {[%clk 0:02:48.2]} 18. Bg3 {[%clk 0:02:41]}
18... g6 {[%clk 0:02:44.3]} 19. b5 {[%clk 0:02:40.7]} 19... Bf8 {[%clk
0:02:37.1]} 20. Rb1 {[%clk 0:02:39.6]} 20... e5 {[%clk 0:02:37.5]} 21. a5 {[%clk
0:02:37.1]} 21... a6 {[%clk 0:02:28]} 22. bxc6 {[%clk 0:02:33.9]} 22... bxc6
{[%clk 0:02:29]} 23. Bg4 {[%clk 0:02:28.4]} 23... Bg7 {[%clk 0:02:24.3]} 24. Rb6
{[%clk 0:02:25.7]} 24... f5 {[%clk 0:02:23.8]} 25. Be2 {[%clk 0:02:24.3]} 25...
Nxb6 {[%clk 0:02:24.3]} 26. cxb6 {[%clk 0:02:21.8]} 26... f4 {[%clk 0:01:59]}
27. exf4 {[%clk 0:02:22.2]} 27... exd4 {[%clk 0:01:59.5]} 28. Bg4 {[%clk
0:02:22]} 28... Qb7 {[%clk 0:01:59.3]} 29. f5 {[%clk 0:02:22.4]} 29... c5 {[%clk
0:01:57.7]} 30. fxg6 {[%clk 0:01:51.9]} 30... hxg6 {[%clk 0:01:59.6]} 31. Bf3
{[%clk 0:01:52.9]} 31... Qc6 {[%clk 0:01:52]} 32. Qb1 {[%clk 0:01:42.4]} 32...
c4 {[%clk 0:01:40.2]} 33. Qb4 {[%clk 0:01:22.2]} 33... Be5 {[%clk 0:01:21.4]}
34. Bxe5 {[%clk 0:00:43.8]} 34... Rxe5 {[%clk 0:01:23.3]} 35. Qd2 {[%clk
0:00:44.8]} 35... d3 {[%clk 0:01:20.8]} 36. Qf4 {[%clk 0:00:45.3]} 36... Rae8
{[%clk 0:01:19]} 37. Qd4 {[%clk 0:00:42.2]} 37... Qb5 {[%clk 0:01:12.1]} 38. g3
{[%clk 0:00:40.2]} 38... Qxa5 {[%clk 0:01:10.5]} 39. Kg2 {[%clk 0:00:39.4]}
39... Qb5 {[%clk 0:01:10.1]} 40. Ra1 {[%clk 0:00:30.9]} 40... R8e6 {[%clk
0:01:09.1]} 41. Bg4 {[%clk 0:00:21]} 41... Re7 {[%clk 0:00:58.6]} 42. Ra2 {[%clk
0:00:18.3]} 42... Kh7 {[%clk 0:00:50.3]} 43. Rb2 {[%clk 0:00:18.8]} 43... Qe8
{[%clk 0:00:45.3]} 44. b7 {[%clk 0:00:19.3]} 44... Qb8 {[%clk 0:00:45.7]} 45.
Qb6 {[%clk 0:00:18.6]} 45... c3 {[%clk 0:00:37.6]} 46. Rb3 {[%clk 0:00:19.4]}
46... c2 {[%clk 0:00:37.9]} 47. Rc3 {[%clk 0:00:20.5]} 47... Qxb7 {[%clk
0:00:37.1]} 48. Qf6 {[%clk 0:00:21.4]} 48... d4+ {[%clk 0:00:37.7]} 49. Bf3
{[%clk 0:00:22.5]} 49... Qxf3+ {[%clk 0:00:34]} 50. Qxf3 {[%clk 0:00:23]} 50...
dxc3 {[%clk 0:00:35.9]} 51. Qf4 {[%clk 0:00:23.6]} 51... d2 {[%clk 0:00:34.7]}
52. Qh4+ {[%clk 0:00:24.3]} 52... Kg7 {[%clk 0:00:36.1]} 0-1

[Event "*** Titled Tuesday Blitz"]
[Site "Chess.com"]
[Date "2020.01.07"]
[Round "6"]
[White "Borsuk_Konstantin"]
[Black "TwentyHourADay"]
[Result "0-1"]
[WhiteElo "2480"]
[BlackElo "2244"]
[TimeControl "180+2"]
[EndTime "14:24:28 PST"]
[Termination "TwentyHourADay won by resignation"]

1. d4 {[%clk 0:03:01.9]} 1... Nf6 {[%clk 0:03:00.8]} 2. c4 {[%clk 0:03:02.6]}
2... e6 {[%clk 0:03:02.1]} 3. Nc3 {[%clk 0:03:03.1]} 3... Bb4 {[%clk 0:03:02.8]}
4. Qc2 {[%clk 0:03:04.6]} 4... O-O {[%clk 0:03:00]} 5. a3 {[%clk 0:03:05.4]}
5... Bxc3+ {[%clk 0:03:01.2]} 6. Qxc3 {[%clk 0:03:07.3]} 6... Qe8 {[%clk
0:03:01.8]} 7. f3 {[%clk 0:03:03.1]} 7... d6 {[%clk 0:02:57.3]} 8. Bg5 {[%clk
0:02:57.8]} 8... Nbd7 {[%clk 0:02:57.7]} 9. e4 {[%clk 0:02:42]} 9... e5 {[%clk
0:02:56.8]} 10. d5 {[%clk 0:02:42.9]} 10... c6 {[%clk 0:02:49]} 11. Ne2 {[%clk
0:02:27.2]} 11... a5 {[%clk 0:02:37.1]} 12. Rd1 {[%clk 0:02:18.2]} 12... cxd5
{[%clk 0:02:33.6]} 13. cxd5 {[%clk 0:02:16.7]} 13... h6 {[%clk 0:02:31.8]} 14.
Bh4 {[%clk 0:02:16.9]} 14... Nh5 {[%clk 0:02:29.1]} 15. Qc7 {[%clk 0:01:59.6]}
15... g5 {[%clk 0:02:17.9]} 16. Bf2 {[%clk 0:01:55.5]} 16... f5 {[%clk
0:02:12.4]} 17. Nc3 {[%clk 0:01:31.7]} 17... Ndf6 {[%clk 0:02:03.6]} 18. Qxd6
{[%clk 0:01:07.6]} 18... fxe4 {[%clk 0:01:58.8]} 19. fxe4 {[%clk 0:00:45.6]}
19... Bg4 {[%clk 0:01:44.1]} 20. Rd2 {[%clk 0:00:33.1]} 20... Rd8 {[%clk
0:01:39.5]} 21. Qb6 {[%clk 0:00:30]} 21... Rc8 {[%clk 0:01:25]} 22. h3 {[%clk
0:00:29]} 22... Bd7 {[%clk 0:01:05.1]} 23. Qe3 {[%clk 0:00:24.9]} 23... b5
{[%clk 0:01:00.5]} 24. b4 {[%clk 0:00:13.3]} 24... axb4 {[%clk 0:00:54.1]} 25.
axb4 {[%clk 0:00:15.2]} 25... Rxc3 {[%clk 0:00:54.8]} 26. Qxc3 {[%clk 0:00:16]}
26... Nxe4 {[%clk 0:00:55.7]} 27. Qe3 {[%clk 0:00:13.7]} 27... Nxd2 {[%clk
0:00:55.1]} 28. Qxd2 {[%clk 0:00:14.1]} 28... e4 {[%clk 0:00:52.8]} 29. g3
{[%clk 0:00:07]} 29... Qe5 {[%clk 0:00:47.4]} 30. Qd4 {[%clk 0:00:07]} 30...
Qxd4 {[%clk 0:00:38.5]} 31. Bxd4 {[%clk 0:00:07.9]} 31... Nxg3 {[%clk
0:00:39.9]} 32. Rg1 {[%clk 0:00:08.1]} 32... Rxf1+ {[%clk 0:00:40.8]} 33. Rxf1
{[%clk 0:00:08.8]} 33... Nxf1 {[%clk 0:00:42.5]} 34. Kxf1 {[%clk 0:00:10.1]}
34... Bxh3+ {[%clk 0:00:43.8]} 35. Kf2 {[%clk 0:00:11.5]} 35... Bf5 {[%clk
0:00:45]} 36. Ke3 {[%clk 0:00:10.3]} 36... Kf7 {[%clk 0:00:45.9]} 37. d6 {[%clk
0:00:11.1]} 37... Ke6 {[%clk 0:00:46.4]} 38. Bg7 {[%clk 0:00:12.2]} 38... h5
{[%clk 0:00:47.2]} 39. Bh6 {[%clk 0:00:12.7]} 39... Kf6 {[%clk 0:00:46.8]} 40.
Bf8 {[%clk 0:00:13]} 40... h4 {[%clk 0:00:43]} 41. Be7+ {[%clk 0:00:07.4]} 41...
Kg6 {[%clk 0:00:44.2]} 42. d7 {[%clk 0:00:03.4]} 42... Bxd7 {[%clk 0:00:45]} 43.
Kxe4 {[%clk 0:00:04.9]} 43... Bf5+ {[%clk 0:00:44.1]} 44. Kf3 {[%clk 0:00:05.5]}
44... Bd3 {[%clk 0:00:42.1]} 45. Kf2 {[%clk 0:00:04.1]} 45... Kf5 {[%clk
0:00:42.4]} 46. Ke3 {[%clk 0:00:04.5]} 46... Bc4 {[%clk 0:00:42.9]} 47. Kf2
{[%clk 0:00:05.5]} 47... Kg4 {[%clk 0:00:41.7]} 48. Kg2 {[%clk 0:00:06.7]} 48...
Bd5+ {[%clk 0:00:42]} 49. Kh2 {[%clk 0:00:07.9]} 49... Kh5 {[%clk 0:00:41.8]}
50. Kg1 {[%clk 0:00:07.3]} 50... g4 {[%clk 0:00:43]} 51. Bd8 {[%clk 0:00:05.6]}
51... g3 {[%clk 0:00:43.7]} 0-1

[Event "*** Titled Tuesday Blitz"]
[Site "Chess.com"]
[Date "2020.01.07"]
[Round "6"]
[White "HrvojeZagreb"]
[Black "Kostina_Nadezhda"]
[Result "0-1"]
[WhiteElo "2215"]
[BlackElo "2136"]
[TimeControl "180+2"]
[EndTime "14:24:31 PST"]
[Termination "Kostina_Nadezhda won by resignation"]

1. d4 {[%clk 0:03:01.9]} 1... Nf6 {[%clk 0:02:59.8]} 2. Bf4 {[%clk 0:03:03]}
2... d5 {[%clk 0:02:56.9]} 3. e3 {[%clk 0:03:03.6]} 3... g6 {[%clk 0:02:56.9]}
4. h4 {[%clk 0:03:03]} 4... h5 {[%clk 0:02:46.3]} 5. Nc3 {[%clk 0:02:49.8]} 5...
c6 {[%clk 0:02:41]} 6. f3 {[%clk 0:02:43.2]} 6... Qb6 {[%clk 0:02:32.5]} 7. Qd2
{[%clk 0:02:35.4]} 7... Bg7 {[%clk 0:02:30.4]} 8. O-O-O {[%clk 0:02:35.3]} 8...
Nbd7 {[%clk 0:02:30.9]} 9. e4 {[%clk 0:02:34.3]} 9... a5 {[%clk 0:02:30.1]} 10.
e5 {[%clk 0:02:32.3]} 10... Ng8 {[%clk 0:02:29.2]} 11. g4 {[%clk 0:02:33.1]}
11... Nf8 {[%clk 0:02:23.7]} 12. Be2 {[%clk 0:02:27.5]} 12... Ne6 {[%clk
0:02:24.4]} 13. Be3 {[%clk 0:02:26.6]} 13... a4 {[%clk 0:02:16.4]} 14. a3 {[%clk
0:02:27.2]} 14... Qa5 {[%clk 0:02:09]} 15. Nh3 {[%clk 0:02:19.4]} 15... hxg4
{[%clk 0:02:07.4]} 16. Ng5 {[%clk 0:02:07.3]} 16... Nxg5 {[%clk 0:01:58.9]} 17.
hxg5 {[%clk 0:02:06.2]} 17... Rxh1 {[%clk 0:01:58.2]} 18. Rxh1 {[%clk
0:02:08.1]} 18... gxf3 {[%clk 0:01:56]} 19. Bxf3 {[%clk 0:02:10]} 19... Bf5
{[%clk 0:01:56.2]} 20. Kb1 {[%clk 0:02:02.1]} 20... b5 {[%clk 0:01:46.9]} 21.
Na2 {[%clk 0:01:57.6]} 21... Qxd2 {[%clk 0:01:41.9]} 22. Bxd2 {[%clk 0:01:59.5]}
22... e6 {[%clk 0:01:38.6]} 23. Rh7 {[%clk 0:01:56.2]} 23... Bf8 {[%clk
0:01:30.4]} 24. Rh8 {[%clk 0:01:52.6]} 24... Ne7 {[%clk 0:01:30.6]} 25. Bb4
{[%clk 0:01:53.3]} 25... Kd7 {[%clk 0:01:22.6]} 26. Bd6 {[%clk 0:01:49.5]} 26...
Rc8 {[%clk 0:01:09]} 27. Nb4 {[%clk 0:01:48.2]} 27... Bg7 {[%clk 0:01:03.2]} 28.
Rh7 {[%clk 0:01:46.4]} 28... Rg8 {[%clk 0:00:58.7]} 29. Bxe7 {[%clk 0:01:45]}
29... Kxe7 {[%clk 0:00:58.9]} 30. Nxc6+ {[%clk 0:01:46.1]} 30... Kd7 {[%clk
0:00:55]} 31. Na7 {[%clk 0:01:46.6]} 31... Rh8 {[%clk 0:00:42.6]} 32. Rxg7
{[%clk 0:01:44.7]} 32... Ke7 {[%clk 0:00:42.6]} 33. Nxb5 {[%clk 0:01:38.9]}
33... Kf8 {[%clk 0:00:43.4]} 34. Rxf7+ {[%clk 0:01:38.8]} 34... Kxf7 {[%clk
0:00:44.8]} 35. Nc3 {[%clk 0:01:17.2]} 35... Rh2 {[%clk 0:00:41.9]} 36. Bd1
{[%clk 0:01:17.2]} 36... Rd2 {[%clk 0:00:38.5]} 37. Kc1 {[%clk 0:01:17.2]} 37...
Rxd4 {[%clk 0:00:39.1]} 38. b3 {[%clk 0:01:13.3]} 38... axb3 {[%clk 0:00:36]}
39. cxb3 {[%clk 0:01:15.2]} 39... Rd3 {[%clk 0:00:31.4]} 40. Kb2 {[%clk
0:01:12.5]} 40... d4 {[%clk 0:00:30.7]} 41. Nb5 {[%clk 0:01:04.1]} 41... Rxd1
{[%clk 0:00:30.5]} 42. a4 {[%clk 0:01:06]} 42... d3 {[%clk 0:00:23.3]} 43. a5
{[%clk 0:01:03.3]} 43... d2 {[%clk 0:00:16.5]} 44. Kc3 {[%clk 0:00:54.1]} 44...
Ra1 {[%clk 0:00:16.4]} 45. Kxd2 {[%clk 0:00:55]} 45... Rxa5 {[%clk 0:00:17.5]}
46. Nc3 {[%clk 0:00:52.1]} 46... Rxe5 {[%clk 0:00:17.9]} 47. b4 {[%clk
0:00:53.1]} 47... Be4 {[%clk 0:00:16.6]} 48. b5 {[%clk 0:00:53.7]} 48... Bg2
{[%clk 0:00:14.6]} 49. Kd3 {[%clk 0:00:50.5]} 49... Rxg5 {[%clk 0:00:14.8]} 50.
b6 {[%clk 0:00:51.3]} 50... Rc5 {[%clk 0:00:13.1]} 51. Ne4 {[%clk 0:00:43.6]}
51... Bxe4+ {[%clk 0:00:13.2]} 52. Kxe4 {[%clk 0:00:45.5]} 52... Rb5 {[%clk
0:00:14.4]} 0-1